fUSD/lending_fUSD_20250526
["ID","MTS","AMOUNT","RATE_DAILY","PERIOD"]
[362401773,1748253068403,-1023.2,0.00027397,2]
[362401774,1748253068412,-1023.2,0.00027397,2]
[362401775,1748253068422,-1023.2,0.00027397,2]
[362401776,1748253068432,-1023.2,0.00027397,2]
[362401777,1748253068441,-1023.2,0.00027397,2]
[362401778,1748253068451,-1023.2,0.00027397,2]
[362401779,1748253068460,-1023.2,0.00027397,2]
[362401780,1748253068470,-1023.2,0.00027397,2]
[362401781,1748253068478,-1023.2,0.00027397,2]
[362401782,1748253068488,-1023.2,0.00027397,2]
[362401783,1748253068498,-1023.2,0.00027397,2]
[362401784,1748253068507,-1023.2,0.00027397,2]
[362401785,1748253068517,-1023.2,0.00027397,2]
[362401786,1748253068527,-1023.2,0.00027397,2]
[362401787,1748253068536,-2000.0,0.00027397,30]
[362401788,1748253068546,-1023.2,0.00027397,2]
[362401789,1748253068556,-2000.0,0.00027397,30]
[362401790,1748253068565,-1023.2,0.00027397,2]
[362401791,1748253068575,-1695.34834238,0.00027397,30]
[362401792,1748253068584,-151.0,0.00027397,7]
[362401793,1748253068594,-1023.2,0.00027397,2]
[362401794,1748253068603,-1023.2,0.00027397,2]
[362401795,1748253068613,-1023.2359717,0.00027397,2]
[362401796,1748253068622,-156.093063,0.00027397,7]
[362401797,1748253068633,-151.0,0.00027397,7]
[362401798,1748253068643,-151.0,0.00027397,7]
[362401799,1748253068861,-150.0,0.00027397,2]
[362401800,1748253068872,-272.126462,0.00027397,7]
[362401801,1748253068883,-272.126462,0.00027397,7]
[362401802,1748253068893,-151.0,0.00027397,7]
[362401803,1748253068903,-9585.71,0.00027397,2]
[362401804,1748253068913,-151.0,0.00027397,7]
[362401805,1748253068922,-151.0,0.00027397,7]
[362401806,1748253068932,-151.0,0.00027397,7]
[362401807,1748253068942,-151.0,0.00027397,7]
[362401808,1748253068953,-501.21,0.00027397,2]
[362401809,1748253068963,-300.0,0.00027397,2]
[362401810,1748253068974,-150.0,0.00027397,2]
[362401811,1748253068984,-159.38972482,0.00027397,5]
[362401812,1748253068994,-500.0,0.00027397,4]
[362401813,1748253069004,-500.0,0.00027398,10]
[362401814,1748253069014,-400.0,0.00027399,10]
[362401815,1748253069023,-5502.9174256,0.000274,4]
[362401816,1748253069033,-151.0,0.000274,7]
[362401817,1748253069046,-650.0,0.000274,2]
[362401818,1748253069055,-151.0,0.000274,7]
[362401819,1748253069066,-498.85642,0.000274,7]
[362401820,1748253069076,-498.85642,0.000274,7]
[362401821,1748253069087,-151.0,0.000274,7]
[362401822,1748253069097,-151.0,0.000274,7]
[362401823,1748253069106,-151.0,0.000274,7]
[362401824,1748253069117,-151.0,0.000274,7]
[362401825,1748253069130,-161.14074,0.000274,7]
[362401826,1748253069140,-161.14074,0.000274,7]
[362401827,1748253069149,-151.0,0.000274,7]
[362401828,1748253069159,-646.26735152,0.000274,2]
[362401829,1748253069169,-151.0,0.000274,7]
[362401830,1748253069178,-254.708704,0.000274,7]
[362401831,1748253069188,-1000.0,0.000274,2]
[362401832,1748253069198,-500.0,0.00027407,2]
[362401833,1748253069208,-275.09730309,0.00027424,2]
[362401834,1748253069218,-538.83228188,0.00027436,2]
[362401835,1748253069227,-500.0,0.00027447,2]
[362401836,1748253069237,-500.0,0.00027484,2]
[362401837,1748253069247,-194.5735722,0.000275,2]
[362401838,1748253069257,-531.42893097,0.000275,2]
[362401839,1748253069266,-10320.93310907,0.000275,7]
[362401840,1748253069275,-500.0,0.0002761,2]
[362401841,1748253069284,-250.0,0.00027616,14]
[362401842,1748253069294,-500.0,0.00027631,2]
[362401843,1748253069303,-860.86,0.00027675,120]
[362401844,1748253069314,-1800.0,0.00027694,2]
[362401845,1748253069324,-1000.0,0.00027738,2]
[362401846,1748253069334,-7900.0,0.00027799,2]
[362401847,1748253069343,-1800.0,0.00027843,2]
[362401848,1748253069352,-838.61,0.00027931,2]
[362401849,1748253069363,-1000.0,0.00027945,4]
[362401850,1748253069372,-150.0,0.00027945,2]
[362401851,1748253069382,-150.0,0.00027945,2]
[362401852,1748253069391,-150.49,0.00027945,2]
[362401853,1748253069401,-152.89,0.00027945,2]
[362401854,1748253069411,-150.0,0.00027945,2]
[362401855,1748253069421,-300.83,0.00027945,2]
[362401856,1748253069430,-453.54,0.00027945,2]
[362401857,1748253069441,-353.71,0.00027945,2]
[362401858,1748253069450,-353.71,0.00027945,2]
[362401859,1748253069460,-916.32,0.00027945,2]
[362401860,1748253069470,-353.71,0.00027945,2]
[362401861,1748253069480,-500.0,0.00027971,2]
[362401862,1748253069490,-1500.0,0.0002799,7]
[362401863,1748253069500,-500.0,0.00027995,2]
[362401864,1748253069510,-1000.0,0.00028,7]
[362401865,1748253069519,-2000.0,0.00028,2]
[362401866,1748253069528,-277.62,0.00028,2]
[362401867,1748253069538,-162.2,0.00028,8]
[362401868,1748253069548,-947.3199592,0.00028,29]
[362401869,1748253069557,-150.0,0.00028,2]
[362401870,1748253069568,-500.0,0.00028,2]
[362401871,1748253069577,-30165.79,0.00028,7]
[362401872,1748253069586,-25554.93442674,0.00028,2]
[362401873,1748253069596,-511.09868853,0.00028,2]
[362401874,1748253069605,-151.0,0.00028,7]
[362401875,1748253069615,-498.85642,0.00028,7]
[362401876,1748253069625,-498.85642,0.00028,7]
[362401877,1748253069635,-4917.54820489,0.00028,2]
[362401878,1748253069644,-4000.0,0.00028,4]
[362401879,1748253069653,-187.01,0.00028011,120]
[362401880,1748253069663,-230.24830838,0.00028082,120]
[362401881,1748253069672,-500.0,0.00028091,2]
[362401882,1748253069681,-1800.0,0.00028096,2]
[362401883,1748253069691,-500.0,0.000281,2]
[362401884,1748253069701,-1800.0,0.00028113,2]
[362401885,1748253069710,-150.0,0.00028118,2]
[362401886,1748253069720,-2000.0,0.00028148,2]
[362401887,1748253069729,-500.0,0.00028197,2]
[362401888,1748253069740,-2006.02,0.000282,7]
[362401889,1748253069750,-999.99,0.00028203,2]
[362401890,1748253069760,-2712.64,0.00028203,5]
[362401891,1748253069769,-452.35,0.00028218,2]
[362401892,1748253069779,-1800.0,0.00028277,2]
[362401893,1748253069788,-2000.0,0.00028295,2]
[362401894,1748253069798,-865.53317852,0.000283,2]
[362401895,1748253069807,-2000.0,0.00028343,2]
[362401896,1748253069817,-7900.0,0.00028343,2]
[362401897,1748253069827,-160.68194755,0.00028359,2]
[362401898,1748253069836,-500.0,0.0002838,2]
[362401899,1748253069846,-7900.0,0.00028394,2]
[362401900,1748253069855,-384.14534475,0.00028411,30]
[362401901,1748253069866,-153.6581379,0.00028411,30]
[362401902,1748253069876,-500.0,0.00028422,2]
[362401903,1748253069885,-164.76,0.00028479,2]
[362401904,1748253069896,-1373.86331321,0.00028493,4]
[362401905,1748253069905,-154.01201341,0.000285,7]
[362401906,1748253069914,-613.92,0.000285,31]
[362401907,1748253069923,-613.92,0.000285,31]
[362401908,1748253069933,-613.92,0.000285,31]
[362401909,1748253069943,-613.92,0.000285,31]
[362401910,1748253069952,-613.92,0.000285,31]
[362401911,1748253069964,-613.92,0.000285,31]
[362401912,1748253069974,-613.92,0.000285,31]
[362401913,1748253069984,-613.92,0.000285,31]
[362401914,1748253069993,-613.92,0.000285,31]
[362401915,1748253070003,-613.92,0.000285,31]
[362401916,1748253070012,-613.92,0.000285,31]
[362401917,1748253070022,-613.92,0.000285,31]
[362401918,1748253070031,-613.92,0.000285,31]
[362401919,1748253070043,-613.92,0.000285,31]
[362401920,1748253070052,-613.92,0.000285,31]
[362401921,1748253070062,-613.92,0.000285,31]
[362401922,1748253070072,-613.92,0.000285,31]
[362401923,1748253070082,-613.92,0.000285,31]
[362401924,1748253070091,-613.92,0.000285,31]
[362401925,1748253070101,-613.92,0.000285,31]
[362401926,1748253070110,-613.92,0.000285,31]
[362401927,1748253070121,-613.92,0.000285,31]
[362401928,1748253070132,-613.92,0.000285,31]
[362401929,1748253070141,-613.92,0.000285,31]
[362401930,1748253070150,-500.0,0.00028517,2]
[362401931,1748253070159,-1000.0,0.00028518,2]
[362401932,1748253070168,-384.14534475,0.00028521,30]
[362401933,1748253070179,-153.6581379,0.00028548,30]
[362401934,1748253070190,-500.0,0.00028588,2]
[362401935,1748253070200,-526.21,0.000286,14]
[362401936,1748253070210,-2000.0,0.00028608,2]
[362401937,1748253070220,-1800.0,0.0002861,2]
[362401938,1748253070230,-384.14534475,0.0002863,30]
[362401939,1748253070240,-500.0,0.00028633,2]
[362401940,1748253070250,-1800.0,0.00028648,2]
[362401941,1748253070259,-153.6581379,0.00028685,30]
[362401942,1748253070269,-2000.0,0.000287,2]
[362401943,1748253070279,-500.0,0.00028703,2]
[362401944,1748253070288,-384.14534475,0.0002874,30]
[362401945,1748253070298,-9585.71,0.00028767,2]
[362401946,1748253070307,-353.58,0.00028767,2]
[362401947,1748253070317,-353.58,0.00028767,2]
[362401948,1748253070326,-704.53,0.00028767,2]
[362401949,1748253070338,-500.0,0.00028777,2]
[362401950,1748253070348,-766.0,0.000288,2]
[362401951,1748253070358,-237.0,0.000288,2]
[362401952,1748253070367,-997.9,0.000288,2]
[362401953,1748253070377,-375.0,0.000288,2]
[362401954,1748253070386,-500.0,0.00028811,120]
[362401955,1748253070396,-153.6581379,0.00028822,30]
[362401956,1748253070406,-500.0,0.00028823,120]
[362401957,1748253070416,-266.148529,0.00028823,120]
[362401958,1748253070425,-150.0,0.00028839,2]
[362401959,1748253070435,-1800.0,0.00028854,2]
[362401960,1748253070444,-2000.0,0.00028875,2]
[362401961,1748253070455,-384.14534475,0.00028877,30]
[362401962,1748253070464,-245.07348,0.00028877,7]
[362401963,1748253070473,-153.6581379,0.00028959,30]
[362401964,1748253070483,-157.618555,0.0002898,7]
[362401965,1748253070492,-151.0,0.0002898,7]
[362401966,1748253070501,-297.524751,0.0002898,7]
[362401967,1748253070511,-297.524751,0.0002898,7]
[362401968,1748253070520,-7900.0,0.0002898,2]
[362401969,1748253070530,-654.892989,0.0002898,7]
[362401970,1748253070539,-654.892989,0.0002898,7]
[362401971,1748253070549,-179.681863,0.0002898,7]
[362401972,1748253070559,-154.774312,0.0002898,7]
[362401973,1748253070568,-384.14534475,0.00028986,30]
[362401974,1748253070578,-250.0,0.00028997,14]
[362401975,1748253070587,-7500.0,0.00029,2]
[362401976,1748253070596,-10000.0,0.00029,14]
[362401977,1748253070606,-75342.44411794,0.00029,2]
[362401978,1748253070615,-53443.7019701,0.00029,2]
[362401979,1748253070624,-150.0,0.00029,2]
[362401980,1748253070633,-159.0,0.00029,120]
[362401981,1748253070643,-1000.0,0.00029,30]
[362401982,1748253070652,-168.0,0.00029,120]
[362401983,1748253070661,-151.0,0.00029,7]
[362401984,1748253070671,-600.0,0.00029,2]
[362401985,1748253070680,-251.89762472,0.00029,2]
[362401986,1748253070689,-151.0,0.00029,7]
[362401987,1748253070699,-151.0,0.00029,7]
[362401988,1748253070708,-151.0,0.00029,7]
[362401989,1748253070717,-151.0,0.00029,7]
[362401990,1748253070726,-161.14074,0.00029,7]
[362401991,1748253070735,-161.14074,0.00029,7]
[362401992,1748253070744,-157.359212,0.00029,7]
[362401993,1748253070754,-154.0,0.00029,2]
[362401994,1748253070763,-154.0,0.00029,2]
[362401995,1748253070772,-151.0,0.00029,7]
[362401996,1748253070782,-264.005745,0.00029,7]
[362401997,1748253070791,-151.0,0.00029,7]
[362401998,1748253070799,-151.0,0.00029,7]
[362401999,1748253070809,-151.0,0.00029,7]
[362402000,1748253070818,-151.0,0.00029,7]
[362402001,1748253070828,-151.0,0.00029,7]
[362402002,1748253070837,-151.0,0.00029,7]
[362402003,1748253070847,-166.392011,0.00029,7]
[362402004,1748253070857,-166.392011,0.00029,7]
[362402005,1748253070866,-151.0,0.00029,7]
[362402006,1748253070876,-942.66582,0.00029,7]
[362402007,1748253070886,-169.931047,0.00029,7]
[362402008,1748253070895,-942.66582,0.00029,7]
[362402009,1748253070904,-169.931047,0.00029,7]
[362402010,1748253070913,-151.0,0.00029,7]
[362402011,1748253070922,-151.0,0.00029,7]
[362402012,1748253070931,-151.0,0.00029,7]
[362402013,1748253070940,-151.0,0.00029,7]
[362402014,1748253070949,-151.0,0.00029,7]
[362402015,1748253070958,-181.218212,0.00029,7]
[362402016,1748253070967,-181.218212,0.00029,7]
[362402017,1748253070977,-584.555545,0.00029,7]
[362402018,1748253070986,-173.673204,0.00029,7]
[362402019,1748253070995,-158.090003,0.00029,7]
[362402020,1748253071005,-173.673204,0.00029,7]
[362402021,1748253071015,-158.090003,0.00029,7]
[362402022,1748253071024,-151.0,0.00029,7]
[362402023,1748253071033,-473.0,0.00029,14]
[362402024,1748253071045,-151.0,0.00029,7]
[362402025,1748253071055,-163.390004,0.00029,7]
[362402026,1748253071064,-151.0,0.00029,7]
[362402027,1748253071073,-151.0,0.00029,7]
[362402028,1748253071083,-151.0,0.00029,7]
[362402029,1748253071092,-155.58611,0.00029,7]
[362402030,1748253071101,-232.386068,0.00029,7]
[362402031,1748253071111,-232.386068,0.00029,7]
[362402032,1748253071121,-4000.0,0.00029,4]
[362402033,1748253071131,-272.126462,0.00029,7]
[362402034,1748253071141,-272.126462,0.00029,7]
[362402035,1748253071151,-151.0,0.00029,7]
[362402036,1748253071160,-500.0,0.00029005,2]
[362402037,1748253071170,-2000.0,0.00029045,2]
[362402038,1748253071179,-500.0,0.0002909,2]
[362402039,1748253071189,-384.14534475,0.00029096,30]
[362402040,1748253071198,-153.6581379,0.00029096,30]
[362402041,1748253071207,-1000.0,0.000291,2]
[362402042,1748253071216,-6453.0,0.00029154,2]
[362402043,1748253071226,-384.14534475,0.00029205,30]
[362402044,1748253071400,-153.6581379,0.00029233,30]
[362402045,1748253071411,-2000.0,0.0002925,2]
[362402046,1748253071421,-1800.0,0.00029298,2]
[362402047,1748253071431,-526.21,0.000293,14]
[362402048,1748253071441,-500.0,0.00029302,2]
[362402049,1748253071451,-384.14534475,0.00029315,30]
[362402050,1748253071460,-153.6581379,0.00029397,30]
[362402051,1748253071470,-7900.0,0.00029406,2]
[362402052,1748253071479,-384.14534475,0.00029425,30]
[362402053,1748253071489,-1072.3750464,0.000295,2]
[362402054,1748253071499,-7900.0,0.00029514,2]
[362402055,1748253071508,-153.6581379,0.00029534,30]
[362402056,1748253071518,-150.0,0.0002956,2]
[362402057,1748253071528,-384.14534475,0.00029562,30]
[362402058,1748253071537,-452.35,0.00029588,2]
[362402059,1748253071547,-150.53,0.00029589,2]
[362402060,1748253071556,-500.0,0.00029592,2]
[362402061,1748253071565,-500.0,0.00029651,2]
[362402062,1748253071575,-500.0,0.00029653,2]
[362402063,1748253071584,-384.14534475,0.00029671,30]
[362402064,1748253071594,-153.6581379,0.00029671,30]
[362402065,1748253071603,-473.0,0.00029674,14]
[362402066,1748253071612,-2006.02,0.000298,7]
[362402067,1748253071621,-500.0,0.00029866,2]
[362402068,1748253071631,-500.0,0.00029882,2]
[362402069,1748253071641,-76110.98651384,0.000299,2]
[362402070,1748253071651,-646.26735152,0.000299,2]
[362402071,1748253071660,-500.0,0.0002993,2]
[362402072,1748253071670,-151.0,0.00029938,7]
[362402073,1748253071679,-498.85642,0.00029938,7]
[362402074,1748253071688,-498.85642,0.00029938,7]
[362402075,1748253071698,-7510.75,0.0002999,2]
[362402076,1748253071707,-229.88530499,0.0002999,2]
[362402077,1748253071717,-938.45019744,0.0003,7]
[362402078,1748253071726,-195.6,0.0003,7]
[362402079,1748253071735,-1000.0,0.0003,15]
[362402080,1748253071745,-1902.41,0.0003,4]
[362402081,1748253071754,-14405.67762772,0.0003,2]
[362402082,1748253071764,-303.17,0.0003,4]
[362402083,1748253071773,-423125.83285447,0.0003,2]
[362402084,1748253071783,-40593.11793311,0.0003,5]
[362402085,1748253071792,-11608.57124374,0.0003,10]
[362402086,1748253071802,-19253.74620871,0.0003,2]
[362402087,1748253071811,-585.67133928,0.0003,2]
[362402088,1748253071821,-1758.14377833,0.0003,2]
[362402089,1748253071830,-1551.54079441,0.0003,2]
[362402090,1748253071839,-965.88428445,0.0003,2]
[362402091,1748253071849,-161.31502217,0.0003,2]
[362402092,1748253071859,-36140.78633204,0.0003,2]
[362402093,1748253071868,-5007.15,0.0003,2]
[362402094,1748253071878,-1002.0,0.0003,3]
[362402095,1748253071888,-150.0,0.0003,2]
[362402096,1748253071898,-16939.40485908,0.0003,7]
[362402097,1748253071907,-150.0,0.0003,2]
[362402098,1748253071917,-500.0,0.0003,2]
[362402099,1748253071927,-3228.36256828,0.0003,5]
[362402100,1748253071936,-909.03963306,0.0003,120]
[362402101,1748253071945,-400.47256498,0.0003,60]
[362402102,1748253071955,-345.4638102,0.0003,120]
[362402103,1748253071964,-526.21,0.0003,14]
[362402104,1748253071974,-161.8,0.0003,2]
[362402105,1748253071983,-151.0,0.0003,7]
[362402106,1748253071993,-498.85642,0.0003,7]
[362402107,1748253072002,-498.856417,0.0003,7]
[362402108,1748253072011,-151.0,0.0003,7]
[362402109,1748253072021,-151.0,0.0003,7]
[362402110,1748253072031,-151.0,0.0003,7]
[362402111,1748253072043,-151.0,0.0003,7]
[362402112,1748253072053,-151.0,0.0003,7]
[362402113,1748253072062,-161.14074,0.0003,7]
[362402114,1748253072072,-161.14074,0.0003,7]
[362402115,1748253072082,-313.183948,0.0003,7]
[362402116,1748253072091,-151.0,0.0003,7]
[362402117,1748253072102,-151.0,0.0003,7]
[362402118,1748253072112,-151.0,0.0003,7]
[362402119,1748253072125,-151.0,0.0003,7]
[362402120,1748253072134,-151.0,0.0003,7]
[362402121,1748253072145,-151.0,0.0003,7]
[362402122,1748253072155,-273.688552,0.0003,7]
[362402123,1748253072165,-151.0,0.0003,7]
[362402124,1748253072174,-166.392011,0.0003,7]
[362402125,1748253072184,-166.392011,0.0003,7]
[362402126,1748253072193,-177.479366,0.0003,7]
[362402127,1748253072203,-942.66582,0.0003,7]
[362402128,1748253072213,-169.931047,0.0003,7]
[362402129,1748253072223,-942.66582,0.0003,7]
[362402130,1748253072232,-169.931047,0.0003,7]
[362402131,1748253072241,-151.0,0.0003,7]
[362402132,1748253072251,-159.273203,0.0003,7]
[362402133,1748253072260,-151.0,0.0003,7]
[362402134,1748253072269,-162.82797,0.0003,7]
[362402135,1748253072279,-225.861458,0.0003,7]
[362402136,1748253072289,-181.218212,0.0003,7]
[362402137,1748253072299,-181.218212,0.0003,7]
[362402138,1748253072308,-584.555545,0.0003,7]
[362402139,1748253072318,-173.673204,0.0003,7]
[362402140,1748253072328,-158.090003,0.0003,7]
[362402141,1748253072337,-173.673204,0.0003,7]
[362402142,1748253072347,-158.090003,0.0003,7]
[362402143,1748253072356,-297.524751,0.0003,7]
[362402144,1748253072368,-297.524751,0.0003,7]
[362402145,1748253072378,-151.0,0.0003,7]
[362402146,1748253072388,-654.892989,0.0003,7]
[362402147,1748253072398,-654.892989,0.0003,7]
[362402148,1748253072408,-151.0,0.0003,7]
[362402149,1748253072418,-151.0,0.0003,7]
[362402150,1748253072428,-151.0,0.0003,7]
[362402151,1748253072438,-151.0,0.0003,7]
[362402152,1748253072448,-214.0,0.0003,2]
[362402153,1748253072458,-232.386068,0.0003,7]
[362402154,1748253072468,-232.386068,0.0003,7]
[362402155,1748253072479,-1324.783508,0.0003,28]
[362402156,1748253072488,-272.126462,0.0003,7]
[362402157,1748253072498,-272.126462,0.0003,7]
[362402158,1748253072508,-151.0,0.0003,7]
[362402159,1748253072519,-1000.0,0.00030021,7]
[362402160,1748253072530,-500.0,0.00030042,7]
[362402161,1748253072540,-500.0,0.00030078,7]
[362402162,1748253072549,-500.0,0.000301,7]
[362402163,1748253072558,-500.0,0.000301,2]
[362402164,1748253072568,-12087.91,0.0003011,2]
[362402165,1748253072578,-5158.76541501,0.0003013,2]
[362402166,1748253072588,-5013.33779964,0.0003013,2]
[362402167,1748253072598,-195.25577606,0.0003013,2]
[362402168,1748253072608,-400.0,0.0003013,2]
[362402169,1748253072618,-9585.71,0.00030137,2]
[362402170,1748253072628,-233.04,0.00030137,80]
[362402171,1748253072640,-600.0,0.00030137,2]
[362402172,1748253072650,-152.0,0.00030155,4]
[362402173,1748253072659,-838.61,0.00030195,2]
[362402174,1748253072669,-613.92,0.000302,31]
[362402175,1748253072679,-613.92,0.000302,31]
[362402176,1748253072688,-613.92,0.000302,31]
[362402177,1748253072698,-613.92,0.000302,31]
[362402178,1748253072708,-613.92,0.000302,31]
[362402179,1748253072717,-613.92,0.000302,31]
[362402180,1748253072727,-613.92,0.000302,31]
[362402181,1748253072737,-613.92,0.000302,31]
[362402182,1748253072747,-613.92,0.000302,31]
[362402183,1748253072756,-613.92,0.000302,31]
[362402184,1748253072766,-613.92,0.000302,31]
[362402185,1748253072776,-613.92,0.000302,31]
[362402186,1748253072787,-613.92,0.000302,31]
[362402187,1748253072797,-613.92,0.000302,31]
[362402188,1748253072806,-613.92,0.000302,31]
[362402189,1748253072817,-613.92,0.000302,31]
[362402190,1748253072827,-613.92,0.000302,31]
[362402191,1748253072837,-613.92,0.000302,31]
[362402192,1748253072847,-613.92,0.000302,31]
[362402193,1748253072856,-613.92,0.000302,31]
[362402194,1748253072866,-613.92,0.000302,31]
[362402195,1748253072875,-613.92,0.000302,31]
[362402196,1748253072886,-613.92,0.000302,31]
[362402197,1748253072895,-613.92,0.000302,31]
[362402198,1748253072905,-500.0,0.00030209,7]
[362402199,1748253072914,-150.0,0.00030281,2]
[362402200,1748253072923,-500.0,0.0003029,7]
[362402201,1748253072931,-800.0,0.00030298,2]
[362402202,1748253072940,-923.0,0.00030298,2]
[362402203,1748253072949,-555.0,0.00030298,2]
[362402204,1748253072957,-1458.813,0.00030298,2]
[362402205,1748253072966,-500.0,0.00030388,7]
[362402206,1748253072975,-170.26,0.00030411,2]
[362402207,1748253072987,-311.94,0.00030411,2]
[362402208,1748253072997,-170.26,0.00030411,2]
[362402209,1748253073007,-340.18,0.00030411,2]
[362402210,1748253073016,-500.0,0.00030423,120]
[362402211,1748253073027,-2139.16997,0.00030423,120]
[362402212,1748253073036,-500.0,0.00030423,120]
[362402213,1748253073051,-500.0,0.00030423,120]
[362402214,1748253073062,-7900.0,0.00030471,7]
[362402215,1748253073072,-500.0,0.00030502,7]
[362402216,1748253073083,-239.5947966,0.00030615,2]
[362402217,1748253073093,-160.97556506,0.00030615,2]
[362402218,1748253073103,-526.21,0.000307,14]
[362402219,1748253073115,-500.0,0.00030758,7]
[362402220,1748253073125,-7900.0,0.00030772,7]
[362402221,1748253073135,-500.0,0.00030836,7]
[362402222,1748253073145,-7900.0,0.0003085,7]
[362402223,1748253073154,-473.0,0.0003087,14]
[362402224,1748253073164,-1765.52,0.000309,7]
[362402225,1748253073174,-452.35,0.00030958,2]
[362402226,1748253073184,-7900.0,0.00030974,7]
[362402227,1748253073193,-154.18,0.00031,2]
[362402228,1748253073203,-650.0,0.00031,2]
[362402229,1748253073214,-228.89869,0.00031,7]
[362402230,1748253073223,-151.0,0.00031,7]
[362402231,1748253073233,-293.265844,0.00031,7]
[362402232,1748253073243,-161.14074,0.00031,7]
[362402233,1748253073252,-161.14074,0.00031,7]
[362402234,1748253073261,-500.0,0.00031,2]
[362402235,1748253073271,-500.0,0.00031,2]
[362402236,1748253073280,-500.0,0.00031,2]
[362402237,1748253073290,-500.0,0.00031,2]
[362402238,1748253073299,-500.0,0.00031,2]
[362402239,1748253073309,-500.0,0.00031,2]
[362402240,1748253073319,-500.0,0.00031,2]
[362402241,1748253073329,-500.0,0.00031,2]
[362402242,1748253073339,-500.0,0.00031,2]
[362402243,1748253073348,-500.0,0.00031,2]
[362402244,1748253073358,-500.0,0.00031,2]
[362402245,1748253073368,-500.0,0.00031,2]
[362402246,1748253073378,-500.0,0.00031,2]
[362402247,1748253073388,-500.0,0.00031,2]
[362402248,1748253073397,-500.0,0.00031,2]
[362402249,1748253073407,-500.0,0.00031,2]
[362402250,1748253073416,-500.0,0.00031,2]
[362402251,1748253073426,-500.0,0.00031,2]
[362402252,1748253073435,-500.0,0.00031,2]
[362402253,1748253073445,-500.0,0.00031,2]
[362402254,1748253073455,-500.0,0.00031,2]
[362402255,1748253073464,-500.0,0.00031,2]
[362402256,1748253073474,-500.0,0.00031,2]
[362402257,1748253073484,-500.0,0.00031,2]
[362402258,1748253073493,-500.0,0.00031,2]
[362402259,1748253073502,-500.0,0.00031,2]
[362402260,1748253073512,-500.0,0.00031,2]
[362402261,1748253073521,-894.0,0.00031,2]
[362402262,1748253073531,-500.0,0.00031,2]
[362402263,1748253073540,-500.0,0.00031,2]
[362402264,1748253073549,-500.0,0.00031,2]
[362402265,1748253073559,-500.0,0.00031,2]
[362402266,1748253073568,-500.0,0.00031,2]
[362402267,1748253073577,-503.0,0.00031,2]
[362402268,1748253073586,-151.0,0.00031,7]
[362402269,1748253073595,-151.0,0.00031,7]
[362402270,1748253073605,-151.0,0.00031,7]
[362402271,1748253073615,-151.0,0.00031,7]
[362402272,1748253073624,-151.0,0.00031,7]